fUST/lending_fUST_20240803
["ID","MTS","AMOUNT","RATE_DAILY","PERIOD"]
[333969455,1722652239817,-503.56266691,0.00013698,2]
[333969456,1722652239828,-502.83507767,0.00013698,2]
[333969457,1722652239851,-500.0,0.00013698,2]
[333969458,1722652239861,-504.7353203,0.00013698,2]
[333969459,1722652239871,-500.0,0.00013698,2]
[333969460,1722652239882,-500.0,0.00013698,2]
[333969461,1722652239893,-287.84623116,0.00013698,2]
[333969462,1722652239903,-500.0,0.00013698,2]
[333969463,1722652239913,-500.89833952,0.00013698,2]
[333969464,1722652239924,-500.0,0.00013698,2]
[333969465,1722652239934,-500.0,0.00013698,2]
[333969466,1722652239946,-505.6301531,0.00013698,2]
[333969467,1722652239956,-504.29784742,0.00013698,2]
[333969468,1722652239965,-504.27054651,0.00013698,2]
[333969469,1722652239975,-896.86,0.00013698,2]
[333969470,1722652239985,-506.34722805,0.00013698,2]
[333969471,1722652239997,-500.0,0.00013698,2]
[333969472,1722652240007,-509.7765928,0.00013698,2]
[333969473,1722652240016,-500.0,0.00013698,2]
[333969474,1722652240026,-504.732386,0.00013698,2]
[333969475,1722652240036,-500.0,0.00013698,2]
[333969476,1722652240046,-500.0,0.00013698,2]
[333969477,1722652240057,-500.0,0.00013698,2]
[333969478,1722652240069,-501.07907325,0.00013698,2]
[333969479,1722652240080,-500.0,0.00013698,2]
[333969480,1722652240090,-500.0,0.00013698,2]
[333969481,1722652240100,-504.56243058,0.00013698,2]
[333969483,1722652240110,-501.89706402,0.00013698,2]
[333969484,1722652240123,-503.24711913,0.00013698,2]
[333969485,1722652240133,-500.0,0.00013698,2]
[333969486,1722652240144,-500.0,0.00013698,2]
[333969487,1722652240155,-500.0,0.00013698,2]
[333969488,1722652240166,-513.17411983,0.00013698,2]
[333969489,1722652240175,-500.0,0.00013698,2]
[333969490,1722652240185,-500.0,0.00013698,2]
[333969491,1722652240197,-501.20184379,0.00013698,2]
[333969492,1722652240208,-502.62511725,0.00013698,2]
[333969493,1722652240219,-506.11798183,0.00013698,2]
[333969494,1722652240231,-506.21082323,0.00013698,2]
[333969495,1722652240241,-500.0,0.00013698,2]
[333969496,1722652240254,-500.0,0.00013698,2]
[333969497,1722652240265,-519.83280494,0.00013698,2]
[333969498,1722652240276,-506.72900474,0.00013698,2]
[333969501,1722652240285,-500.0,0.00013698,2]
[333969504,1722652240296,-654.31,0.00013698,2]
[333969506,1722652240307,-500.0,0.00013698,2]
[333969508,1722652240318,-500.0,0.00013698,2]
[333969510,1722652240328,-501.2042597,0.00013698,2]
[333969512,1722652240351,-677.68,0.00013698,2]
[333969514,1722652240360,-500.0,0.00013698,2]
[333969516,1722652240370,-502.34464033,0.00013698,2]
[333969518,1722652240382,-500.0,0.00013698,2]
[333969520,1722652240392,-506.09517705,0.00013698,2]
[333969522,1722652240401,-500.0,0.00013698,2]
[333969524,1722652240411,-852.24,0.00013698,2]
[333969527,1722652240422,-511.21770539,0.00013698,2]
[333969529,1722652240433,-500.0,0.00013698,2]
[333969531,1722652240445,-500.0,0.00013698,2]
[333969533,1722652240456,-502.61162607,0.00013698,2]
[333969534,1722652240466,-500.0,0.00013698,2]
[333969535,1722652240476,-936.64,0.00013698,2]
[333969538,1722652240488,-2046.87,0.00013698,2]
[333969540,1722652240499,-500.0,0.00013698,2]
[333969542,1722652240508,-504.39035449,0.00013698,2]
[333969544,1722652240518,-500.0,0.00013698,2]
[333969545,1722652240529,-502.98975606,0.00013698,2]
[333969547,1722652240540,-500.0,0.00013698,2]
[333969549,1722652240551,-503.78223999,0.00013698,2]
[333969552,1722652240563,-500.0,0.00013698,2]
[333969562,1722652240665,-500.0,0.00013698,2]
[333969564,1722652240677,-506.92685903,0.00013698,2]
[333969566,1722652240687,-6926.53,0.00013698,2]
[333969568,1722652240698,-500.0,0.00013698,2]
[333969571,1722652240710,-500.0,0.00013698,2]
[333969573,1722652240722,-500.0,0.00013698,2]
[333969575,1722652240732,-500.0,0.00013698,2]
[333969577,1722652240742,-305.18300313,0.00013698,2]
[333969579,1722652240751,-522.79,0.00013698,2]
[333969581,1722652240761,-500.0,0.00013698,2]
[333969583,1722652240772,-500.0,0.00013698,2]
[333969585,1722652240783,-500.0,0.00013698,2]
[333969587,1722652240793,-3185.86,0.00013698,2]
[333969590,1722652240804,-500.0,0.00013698,2]
[333969592,1722652240814,-500.0,0.00013698,2]
[333969594,1722652240825,-517.45085263,0.00013698,2]
[333969596,1722652240846,-500.0,0.00013698,2]
[333969598,1722652240857,-500.0,0.00013698,2]
[333969599,1722652240867,-1450.88,0.00013698,2]
[333969601,1722652240877,-500.0,0.00013698,2]
[333969603,1722652240887,-506.99454715,0.00013698,2]
[333969604,1722652240897,-329.04185234,0.00013698,2]
[333969605,1722652240908,-500.0,0.00013698,2]
[333969607,1722652240917,-500.0,0.00013698,2]
[333969608,1722652240927,-1130.72,0.00013698,2]
[333969610,1722652240937,-500.0,0.00013698,2]
[333969612,1722652240947,-500.0,0.00013698,2]
[333969614,1722652240959,-500.0,0.00013698,2]
[333969616,1722652240971,-500.0,0.00013698,2]
[333969618,1722652240981,-500.0,0.00013698,2]
[333969620,1722652240992,-503.55998072,0.00013698,2]
[333969621,1722652241002,-152.871535,0.00013698,2]
[333969623,1722652241012,-501.10533179,0.00013698,2]
[333969625,1722652241023,-515.17605677,0.00013698,2]
[333969627,1722652241034,-779.87,0.00013698,2]
[333969628,1722652241043,-500.0,0.00013698,2]
[333969631,1722652241056,-500.0,0.00013698,2]
[333969633,1722652241067,-1483.31,0.00013698,2]
[333969635,1722652241079,-500.0,0.00013698,2]
[333969637,1722652241101,-506.56107684,0.00013698,2]
[333969639,1722652241110,-500.0,0.00013698,2]
[333969641,1722652241123,-683.12,0.00013698,2]
[333969643,1722652241133,-504.01670534,0.00013698,2]
[333969645,1722652241144,-656.99,0.00013698,2]
[333969647,1722652241155,-500.0,0.00013698,2]
[333969649,1722652241166,-163.539933,0.00013698,2]
[333969651,1722652241177,-502.80971248,0.00013698,2]
[333969653,1722652241188,-163.539933,0.00013698,2]
[333969654,1722652241200,-3371.84,0.00013698,2]
[333969655,1722652241210,-327.81978353,0.00013698,2]
[333969656,1722652241219,-500.0,0.00013698,2]
[333969657,1722652241230,-500.0,0.00013698,2]
[333969658,1722652241240,-432.527744,0.00013698,2]
[333969659,1722652241251,-510.46133776,0.00013698,2]
[333969660,1722652241263,-231.2118877,0.00013698,2]
[333969661,1722652241274,-1216.94,0.00013698,2]
[333969662,1722652241285,-432.527744,0.00013698,2]
[333969663,1722652241296,-831.9,0.00013698,2]
[333969664,1722652241306,-768.73,0.00013698,2]
[333969665,1722652241317,-548.03,0.00013698,2]
[333969666,1722652241326,-502.21061574,0.00013698,2]
[333969667,1722652241342,-555.11639801,0.00013698,2]
[333969668,1722652241352,-1714.56,0.00013698,2]
[333969669,1722652241362,-500.0,0.00013698,2]
[333969670,1722652241371,-5108.64,0.00013698,2]
[333969671,1722652241382,-151.0,0.00013698,2]
[333969672,1722652241393,-500.0,0.00013698,2]
[333969673,1722652241404,-501.65924626,0.00013698,2]
[333969674,1722652241415,-692.39,0.00013698,2]
[333969675,1722652241426,-500.0,0.00013698,2]
[333969676,1722652241436,-706.24,0.00013698,2]
[333969677,1722652241449,-500.0,0.00013698,2]
[333969678,1722652241459,-151.0,0.00013698,2]
[333969679,1722652241469,-500.0,0.00013698,2]
[333969680,1722652241479,-500.0,0.00013698,2]
[333969681,1722652241490,-1122.3,0.00013698,2]
[333969682,1722652241502,-536.807988,0.00013698,2]
[333969683,1722652241513,-536.807988,0.00013698,2]
[333969684,1722652241523,-873.98,0.00013698,2]
[333969685,1722652241533,-151.0,0.00013698,2]
[333969686,1722652241542,-500.0,0.00013698,2]
[333969687,1722652241552,-151.0,0.00013698,2]
[333969688,1722652241563,-500.0,0.00013698,2]
[333969689,1722652241573,-501.03865531,0.00013698,2]
[333969690,1722652241589,-502.76573779,0.00013698,2]
[333969691,1722652241598,-500.0,0.00013698,2]
[333969692,1722652241610,-502.50417265,0.00013698,2]
[333969693,1722652241620,-151.0,0.00013698,2]
[333969694,1722652241630,-504.64374314,0.00013698,2]
[333969695,1722652241640,-452.401349,0.00013698,2]
[333969696,1722652241651,-505.18597616,0.00013698,2]
[333969697,1722652241663,-502.71270686,0.00013698,2]
[333969698,1722652241673,-500.0,0.00013698,2]
[333969699,1722652241683,-452.401349,0.00013698,2]
[333969700,1722652241694,-151.0,0.00013698,2]
[333969701,1722652241704,-500.0,0.00013698,2]
[333969702,1722652241715,-516.12272429,0.00013698,2]
[333969703,1722652241726,-514.53690537,0.00013698,2]
[333969704,1722652241737,-500.0,0.00013698,2]
[333969705,1722652241747,-151.0,0.00013698,2]
[333969706,1722652241757,-151.0,0.00013698,2]
[333969707,1722652241767,-500.0,0.00013698,2]
[333969708,1722652241779,-505.28194984,0.00013698,2]
[333969709,1722652241789,-701.71,0.00013698,2]
[333969710,1722652241800,-506.85250603,0.00013698,2]
[333969711,1722652241811,-500.0,0.00013698,2]
[333969712,1722652241821,-503.01287378,0.00013698,2]
[333969713,1722652241831,-500.0,0.00013698,2]
[333969714,1722652241846,-500.0,0.00013698,2]
[333969715,1722652241855,-500.0,0.00013698,2]
[333969716,1722652241865,-1404.02,0.00013698,2]
[333969717,1722652241875,-1983.93,0.00013698,2]
[333969718,1722652241884,-500.0,0.00013698,2]
[333969719,1722652241894,-506.11215054,0.00013698,2]
[333969720,1722652241904,-500.0,0.00013698,2]
[333969721,1722652241914,-500.0,0.00013698,2]
[333969722,1722652241923,-504.37788134,0.00013698,2]
[333969723,1722652241933,-503.41638704,0.00013698,2]
[333969724,1722652241942,-500.0,0.00013698,2]
[333969725,1722652241952,-1519.78,0.00013698,2]
[333969726,1722652241963,-1519.78,0.00013698,2]
[333969727,1722652241973,-1519.78,0.00013698,2]
[333969728,1722652241983,-1519.78,0.00013698,2]
[333969729,1722652241993,-1519.78,0.00013698,2]
[333969730,1722652242003,-5189.31,0.00013698,2]
[333969731,1722652242014,-500.0,0.00013698,2]
[333969732,1722652242025,-447.8323181,0.00013698,2]
[333969733,1722652242037,-500.0,0.00013698,2]
[333969734,1722652242046,-153.349181,0.00013698,2]
[333969735,1722652242055,-500.0,0.00013698,2]
[333969736,1722652242065,-500.0,0.00013698,2]
[333969737,1722652242075,-504.64878827,0.00013698,2]
[333969738,1722652242089,-500.0,0.00013698,2]
[333969739,1722652242098,-500.0,0.00013698,2]
[333969740,1722652242107,-500.0,0.00013698,2]
[333969741,1722652242121,-1206.12,0.00013698,2]
[333969742,1722652242133,-488.776718,0.00013698,2]
[333969743,1722652242143,-504.35593269,0.00013698,2]
[333969744,1722652242154,-488.776718,0.00013698,2]
[333969745,1722652242164,-630.24,0.00013698,2]
[333969746,1722652242174,-500.0,0.00013698,2]
[333969747,1722652242185,-686.57,0.00013698,2]
[333969748,1722652242199,-1323.94,0.00013698,2]
[333969749,1722652242211,-500.0,0.00013698,2]
[333969750,1722652242221,-551.6968082,0.00013698,2]
[333969751,1722652242232,-500.0,0.00013698,2]
[333969752,1722652242243,-151.0,0.00013698,2]
[333969753,1722652242253,-529.84477041,0.00013698,2]
[333969754,1722652242265,-514.4193816,0.00013698,2]
[333969755,1722652242278,-503.01595802,0.00013698,2]
[333969756,1722652242289,-500.0,0.00013698,2]
[333969757,1722652242299,-500.0,0.00013698,2]
[333969758,1722652242309,-500.0,0.00013698,2]
[333969759,1722652242319,-500.0,0.00013698,2]
[333969760,1722652242328,-93.79222023,0.00013698,2]
[333969761,1722652242348,-406.20777977,0.00013698,2]
[333969762,1722652242358,-500.0,0.00013698,2]
[333969763,1722652242367,-251.08031057,0.00013698,2]
[333969764,1722652242376,-1250.21,0.00013698,2]
[333969765,1722652242386,-672.49,0.00013698,2]
[333969766,1722652242395,-507.96028292,0.00013698,2]
[333969767,1722652242405,-500.0,0.00013698,2]
[333969768,1722652242414,-503.04313927,0.00013698,2]
[333969769,1722652242423,-505.55684834,0.00013698,2]
[333969770,1722652242433,-500.0,0.00013698,2]
[333969771,1722652242442,-597.49,0.00013698,2]
[333969772,1722652242451,-504.37478385,0.00013698,2]
[333969773,1722652242461,-277.861845,0.00013699,2]
[333969774,1722652242470,-150.112233,0.000137,2]
[333969775,1722652242481,-502.87440381,0.00013735,2]
[333969776,1722652242492,-151.0,0.00013871,2]
[333969777,1722652242503,-151.0,0.00013871,2]
[333969778,1722652242513,-151.493387,0.00013871,2]
[333969779,1722652242525,-502.87440381,0.00013872,2]
[333969780,1722652242536,-2000.0,0.00013872,2]
[333969781,1722652242546,-3882.72668014,0.000139,2]
[333969782,1722652242557,-1519.78,0.00013961,2]
[333969783,1722652242567,-500.0,0.00013961,2]
[333969784,1722652242578,-500.0,0.00013961,2]
[333969785,1722652242595,-500.0,0.00013961,2]
[333969786,1722652242606,-464.07590844,0.00013961,2]
[333969787,1722652242617,-151.0,0.00013962,2]
[333969788,1722652242629,-151.0,0.00013962,2]
[333969789,1722652242639,-485.705314,0.00013962,2]
[333969790,1722652242648,-485.705314,0.00013962,2]
[333969791,1722652242659,-298.109905,0.00013962,2]
[333969792,1722652242669,-298.109905,0.00013962,2]
[333969793,1722652242679,-152.307698,0.00013962,2]
[333969794,1722652242690,-488.776718,0.00013962,2]
[333969795,1722652242700,-488.776718,0.00013962,2]
[333969796,1722652242710,-151.0,0.00013962,2]
[333969797,1722652242719,-4744.09228746,0.00013962,2]
[333969799,1722652243069,-501.98240643,0.00013698,2]
[333969800,1722652243080,-24303.35840524,0.00013962,2]
[333969801,1722652243095,-500.0,0.00013971,2]
[333969802,1722652243105,-1519.78,0.00013971,2]
[333969803,1722652243116,-1519.78,0.00013971,2]
[333969804,1722652243130,-1519.78,0.00013971,2]
[333969805,1722652243140,-10273.38978627,0.00013972,5]
[333969806,1722652243149,-500.0,0.00013972,2]
[333969807,1722652243159,-633.56,0.00013972,2]
[333969808,1722652243168,-500.0,0.00013972,2]
[333969809,1722652243178,-500.0,0.00013972,2]
[333969810,1722652243188,-500.0,0.00013972,2]
[333969811,1722652243200,-500.0,0.00013972,2]
[333969812,1722652243210,-500.0,0.00013972,2]
[333969813,1722652243222,-500.0,0.00013972,2]
[333969814,1722652243232,-500.0,0.00013972,2]
[333969815,1722652243241,-500.0,0.00013972,2]
[333969816,1722652243251,-500.0,0.00013972,2]
[333969817,1722652243263,-500.0,0.00013972,2]
[333969818,1722652243275,-503.88,0.00013972,2]
[333969819,1722652243286,-500.0,0.00013972,2]
[333969820,1722652243297,-500.0,0.00013972,2]
[333969821,1722652243309,-151.333532,0.00013972,2]
[333969822,1722652243319,-500.0,0.00013972,2]
[333969823,1722652243329,-728.64,0.00013972,2]
[333969824,1722652243341,-381.01617897,0.00013972,2]
[333969825,1722652243350,-507.20990961,0.00013972,2]
[333969827,1722652243360,-151.0,0.00013972,2]
[333969829,1722652243370,-271.630476,0.00013972,2]
[333969830,1722652243379,-503.63085789,0.00013972,2]
[333969831,1722652243389,-151.0,0.00013972,2]
[333969832,1722652243400,-152.635208,0.00013972,2]
[333969833,1722652243410,-504.56975253,0.00013972,2]
[333969834,1722652243422,-500.0,0.00013972,2]
[333969835,1722652243433,-500.0,0.00013972,2]
[333969836,1722652243443,-458.18577017,0.00013972,2]
[333969837,1722652243453,-500.0,0.00013972,2]
[333969838,1722652243464,-500.0,0.00013972,2]
[333969839,1722652243475,-151.0,0.00013972,2]
[333969840,1722652243484,-151.0,0.00013972,2]
[333969841,1722652243495,-500.0,0.00013972,2]
[333969842,1722652243507,-896.86,0.00013972,2]
[333969843,1722652243518,-500.0,0.00013972,2]
[333969844,1722652243528,-500.0,0.00013972,2]
[333969845,1722652243538,-500.0,0.00013972,2]
[333969846,1722652243549,-500.0,0.00013972,2]
[333969847,1722652243558,-500.0,0.00013972,2]
[333969848,1722652243567,-151.0,0.00013972,2]
[333969849,1722652243577,-151.0,0.00013972,2]
[333969850,1722652243589,-151.0,0.00013972,2]
[333969851,1722652243599,-151.0,0.00013972,2]
[333969852,1722652243609,-500.0,0.00013972,2]
[333969853,1722652243619,-500.0,0.00013972,2]
[333969854,1722652243630,-500.0,0.00013972,2]
[333969855,1722652243641,-500.0,0.00013972,2]
[333969856,1722652243651,-500.0,0.00013972,2]
[333969857,1722652243662,-151.0,0.00013972,2]
[333969858,1722652243675,-151.0,0.00013972,2]
[333969859,1722652243687,-151.0,0.00013972,2]
[333969860,1722652243698,-580.68750223,0.00013972,2]
[333969861,1722652243707,-151.0,0.00013972,2]
[333969862,1722652243717,-654.31,0.00013972,2]
[333969863,1722652243728,-500.0,0.00013972,2]
[333969864,1722652243739,-500.0,0.00013972,2]
[333969865,1722652243751,-677.68,0.00013972,2]
[333969866,1722652243762,-500.0,0.00013972,2]
[333969867,1722652243773,-534.32595763,0.00013972,2]
[333969868,1722652243784,-500.0,0.00013972,2]
[333969869,1722652243794,-514.64570901,0.00013972,2]
[333969870,1722652243805,-500.0,0.00013972,2]
[333969871,1722652243816,-457.38051802,0.00013972,2]
[333969872,1722652243835,-28.32479598,0.00013972,2]
[333969873,1722652243846,-330.14460175,0.00013972,2]
[333969874,1722652243859,-155.56071225,0.00013972,2]
[333969875,1722652243870,-500.0,0.00013972,2]
[333969876,1722652243881,-298.109905,0.00013972,2]
[333969877,1722652243891,-936.64,0.00013972,2]
[333969878,1722652243901,-298.109905,0.00013972,2]
[333969879,1722652243910,-2046.87,0.00013972,2]
[333969880,1722652243920,-298.109905,0.00013972,2]
[333969881,1722652243929,-298.109905,0.00013972,2]
[333969882,1722652243939,-500.0,0.00013972,2]
[333969883,1722652243948,-501.63043693,0.00013972,2]
[333969884,1722652243958,-503.27310266,0.00013972,2]
[333969885,1722652243968,-347.67562385,0.00013972,2]
[333969886,1722652243977,-6926.53,0.00013972,2]
[333969887,1722652243987,-505.95072282,0.00013972,2]
[333969888,1722652243997,-511.12489465,0.00013972,2]
[333969889,1722652244006,-500.0,0.00013972,2]
[333969890,1722652244016,-543.23371565,0.00013972,2]
[333969891,1722652244026,-522.79,0.00013972,2]
[333969892,1722652244037,-502.57469937,0.00013972,2]
[333969893,1722652244047,-500.0,0.00013972,2]
[333969894,1722652244057,-500.0,0.00013972,2]
[333969895,1722652244067,-151.0,0.00013972,2]
[333969896,1722652244076,-151.0,0.00013972,2]
[333969897,1722652244087,-3185.86,0.00013972,2]
[333969898,1722652244096,-500.0,0.00013972,2]
[333969899,1722652244106,-151.906928,0.00013972,2]
[333969900,1722652244115,-500.0,0.00013972,2]
[333969901,1722652244129,-500.0,0.00013972,2]
[333969902,1722652244139,-444.83975905,0.00013972,2]
[333969903,1722652244149,-1450.88,0.00013972,2]
[333969904,1722652244158,-507.30670544,0.00013972,2]
[333969905,1722652244167,-1130.72,0.00013972,2]
[333969906,1722652244179,-500.0,0.00013972,2]
[333969907,1722652244190,-500.0,0.00013972,2]
[333969908,1722652244204,-500.0,0.00013972,2]
[333969909,1722652244215,-512.01365044,0.00013972,2]
[333969910,1722652244226,-500.0,0.00013972,2]
[333969911,1722652244236,-1483.31,0.00013972,2]
[333969912,1722652244246,-779.87,0.00013972,2]
[333969913,1722652244256,-500.0,0.00013972,2]
[333969914,1722652244267,-500.0,0.00013972,2]
[333969915,1722652244277,-683.12,0.00013972,2]
[333969916,1722652244287,-656.99,0.00013972,2]
[333969917,1722652244297,-163.539933,0.00013972,2]
[333969918,1722652244306,-500.0,0.00013972,2]
[333969919,1722652244316,-163.539933,0.00013972,2]
[333969920,1722652244325,-163.539933,0.00013972,2]
[333969921,1722652244336,-3371.84,0.00013972,2]
[333969922,1722652244345,-163.539933,0.00013972,2]
[333969923,1722652244355,-432.527744,0.00013972,2]
[333969924,1722652244365,-432.527744,0.00013972,2]
[333969925,1722652244374,-1216.94,0.00013972,2]
[333969926,1722652244383,-432.527744,0.00013972,2]
[333969927,1722652244394,-432.527744,0.00013972,2]
[333969928,1722652244404,-831.9,0.00013972,2]
[333969929,1722652244413,-768.73,0.00013972,2]
[333969930,1722652244422,-548.03,0.00013972,2]
[333969931,1722652244432,-1714.56,0.00013972,2]
[333969932,1722652244442,-5108.64,0.00013972,2]
[333969933,1722652244452,-500.0,0.00013972,2]
[333969934,1722652244462,-151.0,0.00013972,2]
[333969935,1722652244471,-151.0,0.00013972,2]
[333969936,1722652244481,-500.0,0.00013972,2]
[333969937,1722652244490,-692.39,0.00013972,2]
[333969938,1722652244500,-500.0,0.00013972,2]
[333969939,1722652244509,-706.24,0.00013972,2]
[333969940,1722652244520,-517.6950745,0.00013972,2]
[333969941,1722652244530,-151.0,0.00013972,2]
[333969942,1722652244539,-500.0,0.00013972,2]
[333969944,1722652244549,-151.0,0.00013972,2]
[333969946,1722652244558,-500.0,0.00013972,2]
[333969947,1722652244567,-1122.3,0.00013972,2]
[333969948,1722652244577,-536.807988,0.00013972,2]
[333969949,1722652244588,-536.807988,0.00013972,2]
[333969950,1722652244598,-873.98,0.00013972,2]
[333969951,1722652244608,-536.807988,0.00013972,2]
[333969952,1722652244618,-536.807988,0.00013972,2]
[333969953,1722652244627,-151.0,0.00013972,2]
[333969954,1722652244637,-151.0,0.00013972,2]
[333969955,1722652244647,-500.0,0.00013972,2]
[333969956,1722652244656,-151.0,0.00013972,2]
[333969957,1722652244666,-151.0,0.00013972,2]
[333969959,1722652244676,-500.0,0.00013972,2]
[333969961,1722652244685,-151.0,0.00013972,2]
[333969970,1722652244694,-151.0,0.00013972,2]
[333969972,1722652244782,-452.401349,0.00013972,2]
[333969974,1722652244791,-452.401349,0.00013972,2]
[333969976,1722652244800,-452.401349,0.00013972,2]
[333969978,1722652244809,-452.401349,0.00013972,2]
[333969980,1722652244819,-151.0,0.00013972,2]
[333969982,1722652244828,-151.0,0.00013972,2]
[333969984,1722652244840,-500.0,0.00013972,2]
[333969986,1722652244851,-500.0,0.00013972,2]
[333969988,1722652244860,-272.54129,0.00013972,2]
[333969990,1722652244869,-500.0,0.00013972,2]
[333969992,1722652244879,-701.71,0.00013972,2]
[333969994,1722652244888,-636.24062349,0.00013972,2]
[333969996,1722652244897,-500.0,0.00013972,2]
[333969998,1722652244906,-500.0,0.00013972,2]
[333970000,1722652244916,-504.76316289,0.00013972,2]
[333970002,1722652244927,-1404.02,0.00013972,2]
[333970005,1722652244940,-1983.93,0.00013972,2]
[333970007,1722652244950,-500.0,0.00013972,2]
[333970009,1722652244959,-500.0,0.00013972,2]
[333970011,1722652244969,-500.0,0.00013972,2]
[333970013,1722652244980,-500.0,0.00013972,2]
[333970015,1722652244991,-5189.31,0.00013972,2]
[333970017,1722652245002,-500.0,0.00013972,2]
[333970019,1722652245012,-500.0,0.00013972,2]
[333970020,1722652245022,-500.0,0.00013972,2]
[333970021,1722652245032,-500.0,0.00013972,2]
[333970022,1722652245042,-500.0,0.00013972,2]
[333970023,1722652245051,-500.0,0.00013972,2]
[333970024,1722652245061,-500.0,0.00013972,2]
[333970025,1722652245071,-1206.12,0.00013972,2]
[333970026,1722652245081,-488.776718,0.00013972,2]
[333970027,1722652245094,-488.776718,0.00013972,2]
[333970028,1722652245103,-630.24,0.00013972,2]
[333970029,1722652245112,-500.0,0.00013972,2]
[333970030,1722652245127,-488.776718,0.00013972,2]
[333970031,1722652245136,-488.776718,0.00013972,2]
[333970032,1722652245147,-686.57,0.00013972,2]
[333970033,1722652245158,-1323.94,0.00013972,2]
[333970034,1722652245168,-500.0,0.00013972,2]
[333970035,1722652245178,-510.90577865,0.00013972,2]
[333970036,1722652245188,-151.0,0.00013972,2]
[333970037,1722652245199,-151.0,0.00013972,2]
[333970038,1722652245210,-356.81544732,0.00013972,2]
[333970039,1722652245219,-502.19877842,0.00013972,2]
[333970040,1722652245229,-447.2845941,0.00013972,2]
[333970041,1722652245238,-1250.21,0.00013972,2]
[333970042,1722652245248,-672.49,0.00013972,2]
[333970043,1722652245257,-500.0,0.00013972,2]
[333970044,1722652245267,-597.49,0.00013972,2]
[333970045,1722652245277,-502.87440381,0.00014009,2]
[333970046,1722652245286,-536.807988,0.00014009,2]
[333970047,1722652245296,-536.807988,0.00014009,2]
[333970048,1722652245307,-151.0,0.00014009,2]
[333970049,1722652245316,-151.0,0.00014009,2]
[333970050,1722652245325,-259.067118,0.00014009,2]
[333970051,1722652245336,-452.401349,0.00014009,2]
[333970052,1722652245345,-452.401349,0.00014009,2]
[333970053,1722652245354,-151.0,0.00014009,2]
[333970054,1722652245363,-5313.02250689,0.00014133,2]
[333970055,1722652245373,-502.87440381,0.00014146,2]
[333970056,1722652245383,-1438.79020147,0.00014146,2]
[333970057,1722652245394,-586.696619,0.000142,5]
[333970058,1722652245405,-150.112233,0.000142,2]
[333970059,1722652245414,-216.52897764,0.00014235,2]
[333970060,1722652245424,-500.0,0.00014235,2]
[333970061,1722652245434,-631.01299228,0.00014235,2]
[333970062,1722652245444,-500.0,0.00014235,2]
[333970063,1722652245454,-500.0,0.00014235,2]
[333970064,1722652245464,-500.0,0.00014235,2]
[333970065,1722652245476,-500.0,0.00014235,2]
[333970066,1722652245486,-500.0,0.00014235,2]
[333970067,1722652245497,-500.0,0.00014235,2]
[333970068,1722652245509,-4229.11832836,0.00014236,2]
[333970203,1722652248093,-5453.36523587,0.00014236,2]
[333970205,1722652248103,-53471.0569149,0.00014236,5]
[333970207,1722652248113,-151.0,0.00014236,2]
[333970209,1722652248128,-163.539933,0.00014236,2]
[333970211,1722652248139,-163.539933,0.00014236,2]
[333970213,1722652248150,-432.527744,0.00014236,2]
[333970215,1722652248160,-432.527744,0.00014236,2]
[333970217,1722652248170,-151.0,0.00014236,2]